fUSD/lending_fUSD_20240223
["ID","MTS","AMOUNT","RATE_DAILY","PERIOD"]
[314944338,1708691471828,-151.0,0.0002863,7]
[314944339,1708691471837,-3195.13,0.0002863,2]
[314944340,1708691471846,-3378.46,0.0002863,2]
[314944341,1708691471859,-500.0,0.0002863,2]
[314944342,1708691471869,-151.0,0.0002863,7]
[314944343,1708691471882,-587.56,0.0002863,2]
[314944344,1708691471891,-500.0,0.0002863,2]
[314944345,1708691471901,-2460.31,0.0002863,2]
[314944346,1708691471912,-826.6,0.0002863,2]
[314944347,1708691471921,-1648.46,0.0002863,2]
[314944348,1708691471930,-500.0,0.0002863,2]
[314944349,1708691471940,-536.91,0.0002863,2]
[314944350,1708691471949,-3457.82,0.0002863,2]
[314944351,1708691471958,-500.0,0.0002863,2]
[314944352,1708691471968,-661.28,0.0002863,2]
[314944353,1708691471978,-151.0,0.0002863,7]
[314944354,1708691471987,-500.0,0.0002863,2]
[314944355,1708691471997,-500.0,0.0002863,2]
[314944356,1708691472006,-500.0,0.0002863,2]
[314944357,1708691472016,-816.69,0.0002863,2]
[314944358,1708691472026,-151.0,0.0002863,7]
[314944359,1708691472036,-1895.05,0.0002863,2]
[314944360,1708691472045,-2058.22,0.0002863,2]
[314944361,1708691472054,-500.0,0.0002863,2]
[314944362,1708691472064,-500.0,0.0002863,2]
[314944363,1708691472073,-3825.2,0.0002863,2]
[314944364,1708691472083,-500.0,0.0002863,2]
[314944365,1708691472093,-1955.25,0.0002863,2]
[314944366,1708691472104,-151.0,0.0002863,7]
[314944367,1708691472113,-150.0,0.00028641,2]
[314944368,1708691472122,-150.0,0.00028642,2]
[314944369,1708691472131,-150.0,0.00028647,2]
[314944370,1708691472141,-150.0,0.00028648,2]
[314944371,1708691472150,-1439.22671724,0.00028651,2]
[314944372,1708691472159,-200.0,0.00028651,2]
[314944373,1708691472168,-1500.0,0.00028651,2]
[314944374,1708691472177,-150.0,0.00028653,2]
[314944375,1708691472187,-645.2774114,0.00028654,4]
[314944376,1708691472196,-150.0,0.00028658,2]
[314944377,1708691472205,-150.0,0.00028659,2]
[314944378,1708691472214,-300.0,0.00028661,2]
[314944379,1708691472223,-1186.81,0.00028664,2]
[314944380,1708691472233,-300.0,0.00028664,2]
[314944381,1708691472242,-150.0,0.00028664,2]
[314944382,1708691472251,-1290.0,0.00028671,30]
[314944383,1708691472261,-150.0,0.00028671,2]
[314944384,1708691472270,-150.0,0.00028671,2]
[314944385,1708691472278,-150.0,0.00028677,2]
[314944386,1708691472287,-150.0,0.00028679,2]
[314944387,1708691472302,-150.0,0.00028679,2]
[314944388,1708691472316,-150.0,0.00028679,2]
[314944389,1708691472330,-150.0,0.0002868,2]
[314944390,1708691472344,-150.0,0.00028681,2]
[314944391,1708691472360,-300.0,0.00028681,2]
[314944392,1708691472370,-200.0,0.00028686,2]
[314944393,1708691472382,-800.0,0.00028686,2]
[314944394,1708691472394,-1500.0,0.00028694,2]
[314944395,1708691472409,-150.0,0.00028694,2]
[314944396,1708691472429,-150.0,0.00028695,2]
[314944397,1708691472443,-150.0,0.00028696,2]
[314944398,1708691472455,-150.0,0.00028697,2]
[314944399,1708691472469,-150.0,0.00028698,2]
[314944400,1708691472479,-150.0,0.00028717,2]
[314944401,1708691472492,-2682.69787784,0.00028717,2]
[314944402,1708691472505,-1500.0,0.00028724,2]
[314944403,1708691472516,-150.0,0.00028726,2]
[314944404,1708691472528,-150.0,0.00028727,2]
[314944405,1708691472540,-150.0,0.00028728,2]
[314944406,1708691472553,-150.0,0.00028728,2]
[314944407,1708691472566,-150.0,0.00028729,2]
[314944408,1708691472580,-150.0,0.00028739,2]
[314944409,1708691472595,-150.0,0.00028741,2]
[314944410,1708691472611,-300.0,0.00028742,2]
[314944411,1708691472626,-320.99,0.00028744,2]
[314944412,1708691472638,-150.0,0.00028745,2]
[314944413,1708691472652,-150.0,0.00028748,2]
[314944414,1708691472665,-150.0,0.00028748,2]
[314944415,1708691472679,-164.0,0.00028751,2]
[314944416,1708691472690,-150.0,0.00028754,2]
[314944417,1708691472704,-888.12,0.00028756,2]
[314944418,1708691472717,-150.0,0.00028756,2]
[314944419,1708691472730,-1500.0,0.00028758,2]
[314944420,1708691472742,-150.0,0.00028758,2]
[314944421,1708691472756,-170.60939664,0.00028759,2]
[314944422,1708691472768,-1797.51493686,0.00028759,2]
[314944423,1708691472782,-150.0,0.00028762,2]
[314944424,1708691472795,-150.0,0.00028763,2]
[314944425,1708691472806,-433.60513329,0.00028764,7]
[314944426,1708691472817,-259.4158225,0.00028764,7]
[314944427,1708691472827,-181.55483681,0.00028764,7]
[314944428,1708691472838,-212.81041373,0.00028764,7]
[314944429,1708691472853,-286.29016167,0.00028764,7]
[314944430,1708691472866,-220.11267867,0.00028764,7]
[314944431,1708691472878,-226.84788696,0.00028767,2]
[314944432,1708691472889,-500.0,0.00028767,2]
[314944433,1708691472902,-500.0,0.00028767,2]
[314944434,1708691472914,-556.58,0.00028767,2]
[314944435,1708691472925,-500.0,0.00028767,2]
[314944436,1708691472936,-500.0,0.00028767,2]
[314944437,1708691472946,-526.85,0.00028767,2]
[314944438,1708691472959,-680.43,0.00028767,2]
[314944439,1708691472971,-500.0,0.00028767,2]
[314944440,1708691472982,-518.64,0.00028767,2]
[314944441,1708691472993,-500.0,0.00028767,2]
[314944442,1708691473004,-500.0,0.00028767,2]
[314944443,1708691473016,-500.0,0.00028767,2]
[314944444,1708691473027,-500.0,0.00028767,2]
[314944445,1708691473038,-510.19,0.00028767,2]
[314944446,1708691473050,-364.89945379,0.00028767,2]
[314944447,1708691473061,-500.0,0.00028767,2]
[314944448,1708691473072,-500.0,0.00028767,2]
[314944449,1708691473083,-500.0,0.00028767,2]
[314944450,1708691473095,-500.0,0.00028767,2]
[314944451,1708691473109,-500.0,0.00028767,2]
[314944452,1708691473120,-500.0,0.00028767,2]
[314944453,1708691473131,-500.0,0.00028767,2]
[314944454,1708691473143,-500.0,0.00028767,2]
[314944455,1708691473154,-500.0,0.00028767,2]
[314944456,1708691473165,-500.0,0.00028767,2]
[314944457,1708691473176,-500.0,0.00028767,2]
[314944458,1708691473188,-500.0,0.00028767,2]
[314944459,1708691473199,-516.35835582,0.00028767,2]
[314944460,1708691473212,-500.0,0.00028767,2]
[314944461,1708691473223,-500.0,0.00028767,2]
[314944462,1708691473234,-500.0,0.00028767,2]
[314944463,1708691473246,-500.0,0.00028767,2]
[314944464,1708691473257,-150.0,0.00028767,2]
[314944465,1708691473268,-500.0,0.00028767,2]
[314944466,1708691473279,-500.0,0.00028767,2]
[314944467,1708691473290,-866.95,0.00028767,2]
[314944468,1708691473302,-500.0,0.00028767,2]
[314944469,1708691473312,-712.13,0.00028767,2]
[314944470,1708691473324,-151.0,0.00028767,7]
[314944471,1708691473335,-592.17,0.00028767,2]
[314944472,1708691473346,-333.69343568,0.00028767,2]
[314944473,1708691473359,-500.0,0.00028767,2]
[314944474,1708691473370,-500.0,0.00028767,2]
[314944475,1708691473381,-500.0,0.00028767,2]
[314944476,1708691473392,-744.85,0.00028767,2]
[314944477,1708691473405,-500.0,0.00028767,2]
[314944478,1708691473416,-151.0,0.00028767,7]
[314944479,1708691473429,-581.17,0.00028767,2]
[314944480,1708691473440,-500.0,0.00028767,2]
[314944481,1708691473452,-524.5051886,0.00028767,2]
[314944482,1708691473463,-151.0,0.00028767,7]
[314944483,1708691473475,-500.0,0.00028767,2]
[314944484,1708691473487,-1636.85,0.00028767,2]
[314944485,1708691473499,-500.0,0.00028767,2]
[314944486,1708691473512,-500.0,0.00028767,2]
[314944487,1708691473523,-500.0,0.00028767,2]
[314944488,1708691473534,-618.55,0.00028767,2]
[314944489,1708691473546,-1133.5,0.00028767,2]
[314944490,1708691473557,-651.3,0.00028767,2]
[314944491,1708691473569,-7441.6,0.00028767,2]
[314944492,1708691473580,-500.0,0.00028767,2]
[314944493,1708691473592,-237.22799527,0.00028767,2]
[314944494,1708691473608,-500.0,0.00028767,2]
[314944495,1708691473620,-661.63,0.00028767,2]
[314944496,1708691473631,-500.0,0.00028767,2]
[314944497,1708691473642,-830.11,0.00028767,2]
[314944498,1708691473654,-966.94,0.00028767,2]
[314944499,1708691473666,-500.0,0.00028767,2]
[314944500,1708691473677,-500.0,0.00028767,2]
[314944501,1708691473688,-2440.4,0.00028767,2]
[314944502,1708691473699,-500.0,0.00028767,2]
[314944503,1708691473711,-500.0,0.00028767,2]
[314944504,1708691473723,-500.0,0.00028767,2]
[314944505,1708691473734,-500.0,0.00028767,2]
[314944506,1708691473745,-1120.79,0.00028767,2]
[314944507,1708691473755,-500.0,0.00028767,2]
[314944508,1708691473766,-1232.0,0.00028767,2]
[314944509,1708691473777,-588.82150542,0.00028767,2]
[314944510,1708691473788,-185.86876049,0.00028767,2]
[314944511,1708691473799,-1278.68,0.00028767,2]
[314944512,1708691473810,-772.26,0.00028767,2]
[314944513,1708691473821,-500.0,0.00028767,2]
[314944514,1708691473832,-861.43,0.00028767,2]
[314944515,1708691473843,-500.0,0.00028767,2]
[314944516,1708691473857,-774.07,0.00028767,2]
[314944517,1708691473868,-2030.05,0.00028767,2]
[314944518,1708691473878,-4219.83,0.00028767,2]
[314944519,1708691473889,-500.0,0.00028767,2]
[314944520,1708691473900,-702.02,0.00028767,2]
[314944521,1708691473911,-500.0,0.00028767,2]
[314944522,1708691473922,-500.0,0.00028767,2]
[314944523,1708691473932,-500.0,0.00028767,2]
[314944524,1708691473944,-579.27,0.00028767,2]
[314944525,1708691473955,-500.0,0.00028767,2]
[314944526,1708691473967,-1628.05,0.00028767,2]
[314944527,1708691473982,-306.0223327,0.00028767,2]
[314944528,1708691473993,-500.0,0.00028767,2]
[314944529,1708691474004,-703.53,0.00028767,2]
[314944530,1708691474015,-1080.87,0.00028767,2]
[314944531,1708691474026,-796.04,0.00028767,2]
[314944532,1708691474037,-500.0,0.00028767,2]
[314944533,1708691474048,-500.0,0.00028767,2]
[314944534,1708691474059,-1602.12,0.00028767,2]
[314944535,1708691474070,-582.68,0.00028767,2]
[314944536,1708691474082,-1861.38,0.00028767,2]
[314944537,1708691474092,-500.0,0.00028767,2]
[314944538,1708691474106,-1205.61,0.00028767,2]
[314944539,1708691474117,-500.0,0.00028767,2]
[314944540,1708691474129,-573.42,0.00028767,2]
[314944541,1708691474140,-500.0,0.00028767,2]
[314944542,1708691474151,-1007.67,0.00028767,2]
[314944543,1708691474163,-607.11,0.00028767,2]
[314944544,1708691474174,-500.0,0.00028767,2]
[314944545,1708691474185,-915.01,0.00028767,2]
[314944546,1708691474197,-500.0,0.00028767,2]
[314944547,1708691474208,-702.81,0.00028767,2]
[314944548,1708691474220,-2194.26,0.00028767,2]
[314944549,1708691474231,-886.41,0.00028767,2]
[314944550,1708691474243,-500.0,0.00028767,2]
[314944551,1708691474254,-500.0,0.00028767,2]
[314944552,1708691474265,-500.0,0.00028767,2]
[314944553,1708691474276,-500.0,0.00028767,2]
[314944554,1708691474288,-509.9,0.00028767,2]
[314944555,1708691474298,-500.0,0.00028767,2]
[314944556,1708691474309,-153.23549031,0.00028767,2]
[314944557,1708691474321,-500.0,0.00028767,2]
[314944558,1708691474332,-1189.9,0.00028767,2]
[314944559,1708691474343,-786.77,0.00028767,2]
[314944560,1708691474356,-566.5,0.00028767,2]
[314944561,1708691474367,-4384.33,0.00028767,2]
[314944562,1708691474379,-1816.86,0.00028767,2]
[314944563,1708691474391,-237.74102463,0.00028767,2]
[314944564,1708691474402,-526.49,0.00028767,2]
[314944565,1708691474414,-1526.02,0.00028767,2]
[314944566,1708691474427,-500.0,0.00028767,2]
[314944567,1708691474438,-500.0,0.00028767,2]
[314944568,1708691474449,-1388.33,0.00028767,2]
[314944569,1708691474460,-500.0,0.00028767,2]
[314944570,1708691474472,-2474.45,0.00028767,2]
[314944571,1708691474484,-500.0,0.00028767,2]
[314944572,1708691474495,-5329.91,0.00028767,2]
[314944573,1708691474506,-533.86,0.00028767,2]
[314944574,1708691474518,-632.58,0.00028767,2]
[314944575,1708691474528,-500.0,0.00028767,2]
[314944576,1708691474540,-503.34,0.00028767,2]
[314944577,1708691474551,-970.3,0.00028767,2]
[314944578,1708691474562,-500.0,0.00028767,2]
[314944579,1708691474573,-1854.49,0.00028767,2]
[314944580,1708691474585,-661.23,0.00028767,2]
[314944581,1708691474596,-500.0,0.00028767,2]
[314944582,1708691474609,-500.0,0.00028767,2]
[314944583,1708691474621,-500.0,0.00028767,2]
[314944584,1708691474632,-500.0,0.00028767,2]
[314944585,1708691474643,-500.0,0.00028767,2]
[314944586,1708691474654,-500.0,0.00028767,2]
[314944587,1708691474666,-557.39,0.00028767,2]
[314944588,1708691474677,-500.0,0.00028767,2]
[314944589,1708691474689,-972.27,0.00028767,2]
[314944590,1708691474700,-2756.03,0.00028767,2]
[314944591,1708691474712,-873.84,0.00028767,2]
[314944592,1708691474723,-500.0,0.00028767,2]
[314944593,1708691474734,-1077.76,0.00028767,2]
[314944594,1708691474746,-500.0,0.00028767,2]
[314944595,1708691474756,-500.0,0.00028767,2]
[314944596,1708691474767,-1405.36,0.00028767,2]
[314944597,1708691474778,-344.53812587,0.00028767,2]
[314944598,1708691474789,-833.0,0.00028767,2]
[314944599,1708691474800,-2513.22,0.00028767,2]
[314944600,1708691474811,-857.16,0.00028767,2]
[314944601,1708691474823,-1291.5,0.00028767,2]
[314944602,1708691474834,-514.89,0.00028767,2]
[314944603,1708691474845,-700.66,0.00028767,2]
[314944604,1708691474857,-500.0,0.00028767,2]
[314944605,1708691474868,-2031.36,0.00028767,2]
[314944606,1708691474879,-1009.63,0.00028767,2]
[314944607,1708691474890,-500.0,0.00028767,2]
[314944608,1708691474900,-500.0,0.00028767,2]
[314944609,1708691474911,-638.28545485,0.00028767,2]
[314944610,1708691474922,-516.55,0.00028767,2]
[314944611,1708691474933,-692.0,0.00028767,2]
[314944612,1708691474944,-500.0,0.00028767,2]
[314944613,1708691474954,-1085.28,0.00028767,2]
[314944614,1708691474966,-2188.23,0.00028767,2]
[314944615,1708691474976,-500.0,0.00028767,2]
[314944616,1708691474987,-838.28,0.00028767,2]
[314944617,1708691474998,-592.24,0.00028767,2]
[314944618,1708691475009,-3195.13,0.00028767,2]
[314944619,1708691475020,-3378.46,0.00028767,2]
[314944620,1708691475031,-500.0,0.00028767,2]
[314944621,1708691475042,-587.56,0.00028767,2]
[314944622,1708691475053,-2460.31,0.00028767,2]
[314944623,1708691475063,-500.0,0.00028767,2]
[314944624,1708691475074,-826.6,0.00028767,2]
[314944625,1708691475085,-1648.46,0.00028767,2]
[314944626,1708691475096,-457.68489496,0.00028767,2]
[314944627,1708691475109,-536.91,0.00028767,2]
[314944628,1708691475120,-3457.82,0.00028767,2]
[314944629,1708691475131,-500.0,0.00028767,2]
[314944630,1708691475142,-661.28,0.00028767,2]
[314944631,1708691475153,-500.0,0.00028767,2]
[314944632,1708691475164,-500.0,0.00028767,2]
[314944633,1708691475174,-500.0,0.00028767,2]
[314944634,1708691475186,-816.69,0.00028767,2]
[314944635,1708691475198,-1895.05,0.00028767,2]
[314944636,1708691475209,-2058.22,0.00028767,2]
[314944637,1708691475221,-500.0,0.00028767,2]
[314944638,1708691475232,-500.0,0.00028767,2]
[314944639,1708691475242,-3825.2,0.00028767,2]
[314944640,1708691475251,-500.0,0.00028767,2]
[314944641,1708691475260,-1955.25,0.00028767,2]
[314944642,1708691475270,-300.0,0.00028768,2]
[314944643,1708691475279,-150.0,0.00028769,2]
[314944644,1708691475288,-150.0,0.00028772,2]
[314944645,1708691475298,-150.0,0.00028777,2]
[314944646,1708691475307,-1500.0,0.0002878,2]
[314944647,1708691475317,-1500.0,0.00028783,2]
[314944648,1708691475326,-150.0,0.00028785,2]
[314944649,1708691475338,-1290.01398233,0.00028786,2]
[314944650,1708691475347,-639.09066495,0.00028786,2]
[314944651,1708691475358,-150.0,0.00028788,2]
[314944652,1708691475367,-150.0,0.00028791,2]
[314944653,1708691475376,-200.0,0.000288,2]
[314944654,1708691475385,-924.3,0.000288,2]
[314944655,1708691475394,-1000.0,0.000288,2]
[314944656,1708691475405,-150.0,0.00028803,2]
[314944657,1708691475414,-150.0,0.00028805,2]
[314944658,1708691475427,-150.0,0.00028806,2]
[314944659,1708691475437,-300.0,0.00028811,2]
[314944660,1708691475446,-193.85401589,0.00028815,2]
[314944661,1708691475456,-150.0,0.00028819,2]
[314944662,1708691475467,-150.0,0.00028819,2]
[314944663,1708691475476,-150.0,0.00028819,2]
[314944664,1708691475864,-1186.81,0.00028822,2]
[314944665,1708691475883,-150.0,0.00028822,2]
[314944666,1708691475912,-1500.0,0.00028824,2]
[314944667,1708691475933,-150.0,0.0002883,2]
[314944668,1708691475946,-150.0,0.00028833,2]
[314944669,1708691475956,-150.0,0.00028833,2]
[314944670,1708691475965,-302.4026063,0.00028836,2]
[314944671,1708691475975,-150.0,0.00028836,2]
[314944672,1708691475985,-155.12,0.00028837,2]
[314944673,1708691475994,-150.0,0.00028842,2]
[314944674,1708691476004,-150.0,0.00028845,2]
[314944675,1708691476015,-186.83697916,0.00028845,2]
[314944676,1708691476025,-150.0,0.00028858,2]
[314944677,1708691476035,-209.90672254,0.00028861,2]
[314944678,1708691476046,-5146.52829871,0.00028866,2]
[314944679,1708691476056,-15344.76633829,0.00028866,2]
[314944680,1708691476067,-150.0,0.00028866,2]
[314944681,1708691476077,-1500.0,0.00028866,2]
[314944682,1708691476087,-1500.0,0.00028867,2]
[314944683,1708691476097,-1500.0,0.00028868,2]
[314944684,1708691476111,-150.0,0.00028869,2]
[314944685,1708691476121,-101827.07320392,0.00028877,2]
[314944686,1708691476131,-150.0,0.00028878,2]
[314944687,1708691476141,-150.0,0.00028878,2]
[314944688,1708691476150,-1783.19,0.00028878,2]
[314944689,1708691476159,-150.0,0.00028883,2]
[314944690,1708691476169,-150.0,0.00028897,2]
[314944691,1708691476178,-150.0,0.00028898,2]
[314944692,1708691476187,-1500.0,0.000289,2]
[314944693,1708691476197,-150.0,0.000289,2]
[314944694,1708691476206,-150.0,0.00028902,2]
[314944695,1708691476216,-1500.0,0.00028902,2]
[314944696,1708691476225,-500.0,0.00028904,2]
[314944697,1708691476234,-500.0,0.00028904,2]
[314944698,1708691476244,-556.58,0.00028904,2]
[314944699,1708691476254,-500.0,0.00028904,2]
[314944700,1708691476263,-305.13702132,0.00028904,2]
[314944701,1708691476273,-526.85,0.00028904,2]
[314944702,1708691476282,-680.43,0.00028904,2]
[314944703,1708691476291,-500.0,0.00028904,2]
[314944704,1708691476300,-518.64,0.00028904,2]
[314944705,1708691476310,-500.0,0.00028904,2]
[314944706,1708691476319,-500.0,0.00028904,2]
[314944707,1708691476328,-500.0,0.00028904,2]
[314944708,1708691476337,-500.0,0.00028904,2]
[314944709,1708691476347,-510.19,0.00028904,2]
[314944710,1708691476360,-500.0,0.00028904,2]
[314944711,1708691476370,-500.0,0.00028904,2]
[314944712,1708691476380,-500.0,0.00028904,2]
[314944713,1708691476390,-500.0,0.00028904,2]
[314944714,1708691476402,-500.0,0.00028904,2]
[314944715,1708691476415,-500.0,0.00028904,2]
[314944716,1708691476425,-346.85124539,0.00028904,2]
[314944717,1708691476435,-500.0,0.00028904,2]
[314944718,1708691476444,-500.0,0.00028904,2]
[314944719,1708691476454,-272.75145679,0.00028904,2]
[314944720,1708691476463,-500.0,0.00028904,2]
[314944721,1708691476472,-500.0,0.00028904,2]
[314944722,1708691476482,-500.0,0.00028904,2]
[314944723,1708691476491,-500.0,0.00028904,2]
[314944724,1708691476500,-500.0,0.00028904,2]
[314944725,1708691476510,-500.0,0.00028904,2]
[314944726,1708691476519,-284.63430482,0.00028904,2]
[314944727,1708691476529,-409.59254305,0.00028904,2]
[314944728,1708691476538,-500.0,0.00028904,2]
[314944729,1708691476547,-866.95,0.00028904,2]
[314944730,1708691476556,-500.0,0.00028904,2]
[314944731,1708691476566,-712.13,0.00028904,2]
[314944732,1708691476575,-592.17,0.00028904,2]
[314944733,1708691476585,-500.0,0.00028904,2]
[314944734,1708691476594,-500.0,0.00028904,2]
[314944735,1708691476607,-500.0,0.00028904,2]
[314944736,1708691476617,-744.85,0.00028904,2]
[314944737,1708691476626,-500.0,0.00028904,2]
[314944738,1708691476636,-581.17,0.00028904,2]
[314944739,1708691476646,-500.0,0.00028904,2]
[314944740,1708691476655,-500.0,0.00028904,2]
[314944741,1708691476665,-1636.85,0.00028904,2]
[314944742,1708691476674,-500.0,0.00028904,2]
[314944743,1708691476684,-500.0,0.00028904,2]
[314944744,1708691476693,-500.0,0.00028904,2]
[314944745,1708691476703,-618.55,0.00028904,2]
[314944746,1708691476713,-1133.5,0.00028904,2]
[314944747,1708691476723,-651.3,0.00028904,2]
[314944748,1708691476733,-7441.6,0.00028904,2]
[314944749,1708691476743,-500.0,0.00028904,2]
[314944750,1708691476753,-500.0,0.00028904,2]
[314944751,1708691476762,-661.63,0.00028904,2]
[314944752,1708691476772,-500.0,0.00028904,2]
[314944753,1708691476782,-830.11,0.00028904,2]
[314944754,1708691476791,-966.94,0.00028904,2]
[314944755,1708691476801,-500.0,0.00028904,2]
[314944756,1708691476810,-500.0,0.00028904,2]
[314944757,1708691476820,-2440.4,0.00028904,2]
[314944758,1708691476829,-511.45478616,0.00028904,2]
[314944759,1708691476839,-500.0,0.00028904,2]
[314944760,1708691476850,-500.0,0.00028904,2]
[314944761,1708691476862,-500.0,0.00028904,2]
[314944762,1708691476872,-1120.79,0.00028904,2]
[314944763,1708691476881,-500.0,0.00028904,2]
[314944764,1708691476890,-1232.0,0.00028904,2]
[314944765,1708691476899,-1278.68,0.00028904,2]
[314944766,1708691476909,-772.26,0.00028904,2]
[314944767,1708691476919,-500.0,0.00028904,2]
[314944768,1708691476929,-861.43,0.00028904,2]
[314944769,1708691476940,-500.0,0.00028904,2]
[314944770,1708691476950,-774.07,0.00028904,2]
[314944771,1708691476960,-2030.05,0.00028904,2]
[314944772,1708691476969,-4219.83,0.00028904,2]
[314944773,1708691476978,-500.0,0.00028904,2]
[314944774,1708691476987,-702.02,0.00028904,2]
[314944775,1708691476996,-500.0,0.00028904,2]
[314944776,1708691477006,-500.0,0.00028904,2]
[314944777,1708691477016,-500.0,0.00028904,2]
[314944778,1708691477026,-579.27,0.00028904,2]
[314944779,1708691477039,-500.0,0.00028904,2]
[314944780,1708691477050,-500.0,0.00028904,2]
[314944781,1708691477060,-703.53,0.00028904,2]
[314944782,1708691477069,-1628.05,0.00028904,2]
[314944783,1708691477078,-1080.87,0.00028904,2]
[314944784,1708691477087,-796.04,0.00028904,2]
[314944785,1708691477097,-500.0,0.00028904,2]
[314944786,1708691477110,-500.0,0.00028904,2]
[314944787,1708691477119,-1602.12,0.00028904,2]
[314944788,1708691477128,-582.68,0.00028904,2]
[314944789,1708691477139,-1861.38,0.00028904,2]
[314944790,1708691477150,-500.0,0.00028904,2]
[314944791,1708691477161,-1205.61,0.00028904,2]
[314944792,1708691477170,-500.0,0.00028904,2]
[314944793,1708691477179,-500.0,0.00028904,2]
[314944794,1708691477189,-1007.67,0.00028904,2]
[314944795,1708691477198,-573.42,0.00028904,2]
[314944796,1708691477208,-607.11,0.00028904,2]
[314944797,1708691477218,-500.0,0.00028904,2]
[314944798,1708691477229,-915.01,0.00028904,2]
[314944799,1708691477239,-500.0,0.00028904,2]
[314944800,1708691477248,-702.81,0.00028904,2]
[314944801,1708691477259,-2194.26,0.00028904,2]
[314944802,1708691477269,-886.41,0.00028904,2]
[314944803,1708691477278,-500.0,0.00028904,2]
[314944804,1708691477288,-500.0,0.00028904,2]
[314944805,1708691477297,-178.92469927,0.00028904,2]
[314944806,1708691477306,-500.0,0.00028904,2]
[314944807,1708691477318,-509.9,0.00028904,2]
[314944808,1708691477327,-500.0,0.00028904,2]
[314944809,1708691477337,-465.19766122,0.00028904,2]
[314944810,1708691477627,-34.80233878,0.00028904,2]
[314944811,1708691477638,-355.81516122,0.00028904,2]
[314944812,1708691477650,-834.08483878,0.00028904,2]
[314944813,1708691477659,-149.73732209,0.00028904,2]
[314944814,1708691477671,-637.03267791,0.00028904,2]
[314944815,1708691477680,-566.5,0.00028904,2]
[314944816,1708691477690,-142.78102975,0.00028904,2]
[314944817,1708691477702,-509.73860691,0.00028904,2]
[314944818,1708691477714,-649.02,0.00028904,2]
[314944819,1708691477731,-1244.6844767,0.00028904,2]
[314944820,1708691477881,-1240.0222,0.00026797,2]
[314944821,1708691477890,-938.00516905,0.00027534,2]
[314944822,1708691477911,-20.34483095,0.00027534,2]
[314944823,1708691477920,-958.35,0.00027671,2]
[314944824,1708691477930,-958.35,0.00027808,2]
[314944825,1708691477939,-500.0,0.00027808,2]
[314944826,1708691477948,-958.35,0.00027945,2]
[314944827,1708691477958,-500.0,0.00027945,2]
[314944828,1708691477967,-958.35,0.00028082,2]
[314944829,1708691477976,-958.35,0.00028219,2]
[314944830,1708691477985,-1838.10588664,0.00028904,2]
[314944831,1708691477994,-1816.86,0.00028904,2]
[314944832,1708691478003,-526.49,0.00028904,2]
[314944833,1708691478012,-1526.02,0.00028904,2]
[314944834,1708691478021,-500.0,0.00028904,2]
[314944835,1708691478030,-500.0,0.00028904,2]
[314944836,1708691478039,-1388.33,0.00028904,2]
[314944837,1708691478049,-309.31675532,0.00028904,2]